[Event "Early-Titled-Tuesday-Blitz-September-05-2023"]
[Site "Chess.com"]
[Date "2023.09.05"]
[Round "2"]
[White "CarrotsandPizza"]
[Black "GrumbleBruno"]
[Result "1-0"]
[WhiteElo "2243"]
[BlackElo "2438"]
[TimeControl "180+1"]
[EndTime "8:17:14 PDT"]
[Termination "CarrotsandPizza won by resignation"]

1. e4 {[%clk 0:02:59.8]} 1... e5 {[%clk 0:03:00]} 2. Nf3 {[%clk 0:02:59.8]} 2...
d5 {[%clk 0:03:00.6]} 3. exd5 {[%clk 0:02:59.1]} 3... e4 {[%clk 0:03:00.7]} 4.
Qe2 {[%clk 0:02:59.3]} 4... Nf6 {[%clk 0:03:00.1]} 5. Nc3 {[%clk 0:02:59.6]}
5... Be7 {[%clk 0:03:00.1]} 6. Nxe4 {[%clk 0:02:58.2]} 6... Nxd5 {[%clk
0:03:00.4]} 7. Qd1 {[%clk 0:02:48.1]} 7... O-O {[%clk 0:02:59.2]} 8. Be2 {[%clk
0:02:48.2]} 8... Re8 {[%clk 0:02:59.4]} 9. O-O {[%clk 0:02:48.7]} 9... c5 {[%clk
0:02:55.6]} 10. d4 {[%clk 0:02:45.7]} 10... cxd4 {[%clk 0:02:51]} 11. Nxd4
{[%clk 0:02:45.6]} 11... Nc6 {[%clk 0:02:43.2]} 12. Nxc6 {[%clk 0:02:42.9]}
12... bxc6 {[%clk 0:02:43.4]} 13. Bf3 {[%clk 0:02:43.6]} 13... Qb6 {[%clk
0:02:41.3]} 14. c4 {[%clk 0:02:42.8]} 14... Nf6 {[%clk 0:02:37.9]} 15. Qc2
{[%clk 0:02:38]} 15... Nxe4 {[%clk 0:02:22.7]} 16. Bxe4 {[%clk 0:02:37.5]} 16...
g6 {[%clk 0:02:20]} 17. Re1 {[%clk 0:02:29.3]} 17... Bc5 {[%clk 0:02:11.8]} 18.
Bh6 {[%clk 0:02:25.1]} 18... Be6 {[%clk 0:02:05.8]} 19. b3 {[%clk 0:02:23.3]}
19... Rad8 {[%clk 0:02:03.1]} 20. Rad1 {[%clk 0:02:22.2]} 20... Rxd1 {[%clk
0:02:01.3]} 21. Rxd1 {[%clk 0:02:21.9]} 21... Bg4 {[%clk 0:02:00.9]} 22. Rc1
{[%clk 0:01:15.4]} 22... Bxf2+ {[%clk 0:01:33.8]} 23. Qxf2 {[%clk 0:01:07.9]}
23... Rxe4 {[%clk 0:01:27.8]} 24. h3 {[%clk 0:00:43.3]} 24... Be6 {[%clk
0:01:09.9]} 25. Rd1 {[%clk 0:00:41.7]} 25... Qxf2+ {[%clk 0:01:06.8]} 26. Kxf2
{[%clk 0:00:41.9]} 26... f6 {[%clk 0:01:00.2]} 27. Be3 {[%clk 0:00:36.3]} 27...
a5 {[%clk 0:00:56.6]} 28. Rd6 {[%clk 0:00:36.2]} 28... a4 {[%clk 0:00:54.5]} 29.
Rxc6 {[%clk 0:00:35.4]} 29... axb3 {[%clk 0:00:54.8]} 30. axb3 {[%clk
0:00:36.3]} 30... h5 {[%clk 0:00:52.6]} 31. Kf3 {[%clk 0:00:34.3]} 31... f5
{[%clk 0:00:51.8]} 32. Rc7 {[%clk 0:00:30.1]} 32... Bf7 {[%clk 0:00:48.5]} 33.
g3 {[%clk 0:00:17.2]} 33... Be6 {[%clk 0:00:47.6]} 34. h4 {[%clk 0:00:17.4]}
34... Bf7 {[%clk 0:00:47.6]} 35. Ke2 {[%clk 0:00:17.2]} 35... Be6 {[%clk
0:00:44.5]} 36. Kd3 {[%clk 0:00:17.6]} 36... Bf7 {[%clk 0:00:43.1]} 37. b4
{[%clk 0:00:15.7]} 37... Kf8 {[%clk 0:00:41.6]} 38. b5 {[%clk 0:00:15.9]} 38...
Ke8 {[%clk 0:00:41.7]} 39. b6 {[%clk 0:00:16]} 39... Re7 {[%clk 0:00:37.7]} 40.
Rxe7+ {[%clk 0:00:14.3]} 40... Kxe7 {[%clk 0:00:37.5]} 41. b7 {[%clk 0:00:14.6]}
1-0

[Event "Early-Titled-Tuesday-Blitz-September-05-2023"]
[Site "Chess.com"]
[Date "2023.09.05"]
[Round "2"]
[White "Mr_Lion22"]
[Black "HamedWafa4"]
[Result "1-0"]
[WhiteElo "2424"]
[BlackElo "2623"]
[TimeControl "180+1"]
[EndTime "8:17:15 PDT"]
[Termination "Mr_Lion22 won by resignation"]

1. d4 {[%clk 0:02:59.8]} 1... Nf6 {[%clk 0:02:57.6]} 2. c4 {[%clk 0:03:00.4]}
2... e6 {[%clk 0:02:57.4]} 3. Nc3 {[%clk 0:03:01.2]} 3... Bb4 {[%clk 0:02:57.2]}
4. f3 {[%clk 0:03:01.9]} 4... d5 {[%clk 0:02:54.3]} 5. a3 {[%clk 0:03:02.1]}
5... Bxc3+ {[%clk 0:02:54.4]} 6. bxc3 {[%clk 0:03:03]} 6... c6 {[%clk
0:02:54.9]} 7. Qc2 {[%clk 0:02:49.3]} 7... O-O {[%clk 0:02:48.9]} 8. a4 {[%clk
0:02:37.6]} 8... b6 {[%clk 0:02:33.2]} 9. e3 {[%clk 0:02:32.8]} 9... Ba6 {[%clk
0:02:32]} 10. cxd5 {[%clk 0:02:32.3]} 10... Bxf1 {[%clk 0:02:31.5]} 11. Kxf1
{[%clk 0:02:33.2]} 11... cxd5 {[%clk 0:02:28.2]} 12. Ba3 {[%clk 0:02:25.7]}
12... Re8 {[%clk 0:02:24.8]} 13. c4 {[%clk 0:02:25.9]} 13... Qc8 {[%clk
0:02:16.4]} 14. Rc1 {[%clk 0:02:18.5]} 14... Qa6 {[%clk 0:02:16]} 15. Ne2 {[%clk
0:02:17.9]} 15... Nbd7 {[%clk 0:02:15.5]} 16. Qb3 {[%clk 0:01:35.3]} 16... Rac8
{[%clk 0:02:09.9]} 17. Qb5 {[%clk 0:01:34.8]} 17... Qxb5 {[%clk 0:02:02.6]} 18.
cxb5 {[%clk 0:01:35.7]} 18... Rxc1+ {[%clk 0:02:02.6]} 19. Nxc1 {[%clk
0:01:36.3]} 19... Rc8 {[%clk 0:02:03.2]} 20. Kf2 {[%clk 0:01:31.3]} 20... Rc3
{[%clk 0:02:02.6]} 21. Be7 {[%clk 0:01:22.8]} 21... Rc4 {[%clk 0:01:50.3]} 22.
Nd3 {[%clk 0:01:06.6]} 22... Rxa4 {[%clk 0:01:49.5]} 23. Rc1 {[%clk 0:00:45.3]}
23... Ra2+ {[%clk 0:01:48.2]} 24. Kg3 {[%clk 0:00:37.4]} 24... h5 {[%clk
0:01:47.2]} 25. Rc8+ {[%clk 0:00:26.6]} 25... Kh7 {[%clk 0:01:46.2]} 26. Bxf6
{[%clk 0:00:13.8]} 26... Nxf6 {[%clk 0:01:41.9]} 27. Ne5 {[%clk 0:00:14.4]}
27... h4+ {[%clk 0:01:38.9]} 28. Kh3 {[%clk 0:00:11.2]} 28... Ra3 {[%clk
0:01:38.8]} 29. Nxf7 {[%clk 0:00:10.4]} 29... Rxe3 {[%clk 0:01:37.6]} 30. Rh8+
{[%clk 0:00:09.5]} 30... Kg6 {[%clk 0:01:37]} 31. Ne5+ {[%clk 0:00:10.4]} 31...
Kf5 {[%clk 0:01:36.6]} 32. Rxh4 {[%clk 0:00:11]} 32... g5 {[%clk 0:01:36.1]} 33.
Rh6 {[%clk 0:00:06.6]} 33... g4+ {[%clk 0:01:34.3]} 34. Kh4 {[%clk 0:00:04.3]}
34... gxf3 {[%clk 0:01:34.4]} 35. g4+ {[%clk 0:00:05]} 35... Nxg4 {[%clk
0:01:32.2]} 36. Nxg4 {[%clk 0:00:05.9]} 36... Ke4 {[%clk 0:01:30.9]} 37. Rxe6+
{[%clk 0:00:06.1]} 37... Kxd4 {[%clk 0:01:29.3]} 38. Rxe3 {[%clk 0:00:06.8]}
38... f2 {[%clk 0:01:28.1]} 39. Rf3 {[%clk 0:00:07]} 39... Kc4 {[%clk
0:01:28.6]} 40. Rxf2 {[%clk 0:00:07.2]} 40... Kxb5 {[%clk 0:01:28.1]} 41. Ne3
{[%clk 0:00:06.6]} 41... d4 {[%clk 0:01:27.6]} 42. Nf5 {[%clk 0:00:06.5]} 42...
Kc4 {[%clk 0:01:28.1]} 43. Rf4 {[%clk 0:00:06.3]} 43... a5 {[%clk 0:01:27.2]}
44. Rxd4+ {[%clk 0:00:06.6]} 44... Kb3 {[%clk 0:01:26.3]} 45. Ne3 {[%clk
0:00:04.3]} 45... a4 {[%clk 0:01:26.3]} 46. Rd3+ {[%clk 0:00:05]} 46... Kb4
{[%clk 0:01:24.8]} 47. Kg4 {[%clk 0:00:05.1]} 47... b5 {[%clk 0:01:23]} 48. h4
{[%clk 0:00:05.6]} 48... Ka5 {[%clk 0:01:22.8]} 49. h5 {[%clk 0:00:05.3]} 49...
b4 {[%clk 0:01:23.4]} 50. Rd5+ {[%clk 0:00:04.9]} 50... Kb6 {[%clk 0:01:22.7]}
51. Nc4+ {[%clk 0:00:05.7]} 51... Kc6 {[%clk 0:01:22.2]} 52. Ra5 {[%clk
0:00:06.4]} 52... a3 {[%clk 0:01:21.5]} 53. Nxa3 {[%clk 0:00:06.8]} 53... bxa3
{[%clk 0:01:21.3]} 54. Rxa3 {[%clk 0:00:07.7]} 1-0

[Event "Early-Titled-Tuesday-Blitz-September-05-2023"]
[Site "Chess.com"]
[Date "2023.09.05"]
[Round "2"]
[White "AdrianaPalao"]
[Black "Smiechu"]
[Result "1-0"]
[WhiteElo "2077"]
[BlackElo "2427"]
[TimeControl "180+1"]
[EndTime "8:17:15 PDT"]
[Termination "AdrianaPalao won by resignation"]

1. e4 {[%clk 0:02:58]} 1... c5 {[%clk 0:02:59.8]} 2. Nf3 {[%clk 0:02:57.6]} 2...
g6 {[%clk 0:03:00.4]} 3. d4 {[%clk 0:02:56.1]} 3... cxd4 {[%clk 0:03:01]} 4.
Nxd4 {[%clk 0:02:56.4]} 4... Nc6 {[%clk 0:03:01.1]} 5. Nc3 {[%clk 0:02:56.5]}
5... Bg7 {[%clk 0:03:01.6]} 6. Be3 {[%clk 0:02:57.4]} 6... Nf6 {[%clk
0:03:02.1]} 7. Bc4 {[%clk 0:02:56.8]} 7... O-O {[%clk 0:03:02.4]} 8. Bb3 {[%clk
0:02:57.1]} 8... d6 {[%clk 0:03:03]} 9. f3 {[%clk 0:02:56.5]} 9... Bd7 {[%clk
0:03:03.5]} 10. Qd2 {[%clk 0:02:56.5]} 10... Rc8 {[%clk 0:03:04]} 11. O-O-O
{[%clk 0:02:55.9]} 11... Nxd4 {[%clk 0:03:04.2]} 12. Bxd4 {[%clk 0:02:55.5]}
12... b5 {[%clk 0:03:04.9]} 13. Nd5 {[%clk 0:02:51.5]} 13... Nxd5 {[%clk
0:03:02.9]} 14. Bxg7 {[%clk 0:02:52.4]} 14... Kxg7 {[%clk 0:03:03.2]} 15. exd5
{[%clk 0:02:53]} 15... a5 {[%clk 0:03:03.4]} 16. a3 {[%clk 0:02:25.9]} 16... Kg8
{[%clk 0:03:02.2]} 17. h4 {[%clk 0:02:23.5]} 17... b4 {[%clk 0:03:01.8]} 18. h5
{[%clk 0:02:14.2]} 18... g5 {[%clk 0:02:50.2]} 19. Qxg5+ {[%clk 0:01:42.3]}
19... Kh8 {[%clk 0:02:45.3]} 20. a4 {[%clk 0:01:42.7]} 20... Qe8 {[%clk
0:02:36]} 21. Rhe1 {[%clk 0:01:20.5]} 21... f6 {[%clk 0:02:35.5]} 22. Qe3 {[%clk
0:00:54.9]} 22... Bxa4 {[%clk 0:02:32.5]} 23. Kb1 {[%clk 0:00:54.6]} 23... Bxb3
{[%clk 0:02:29.4]} 24. Qxb3 {[%clk 0:00:55.5]} 24... a4 {[%clk 0:02:25]} 25.
Qxb4 {[%clk 0:00:49.9]} 25... Rb8 {[%clk 0:02:25.1]} 26. Qa3 {[%clk 0:00:48.5]}
26... Qd7 {[%clk 0:02:16.3]} 27. Re4 {[%clk 0:00:45.9]} 27... Rb7 {[%clk
0:02:06.4]} 28. Qxa4 {[%clk 0:00:38.5]} 28... Qc7 {[%clk 0:01:57.7]} 29. Qc6
{[%clk 0:00:31.8]} 29... Qb8 {[%clk 0:01:57.6]} 30. b3 {[%clk 0:00:25.9]} 30...
Rc8 {[%clk 0:01:55.8]} 31. Qa4 {[%clk 0:00:21.1]} 31... Ra7 {[%clk 0:01:44.7]}
32. Qd4 {[%clk 0:00:21.1]} 32... Qa8 {[%clk 0:01:23]} 33. h6 {[%clk 0:00:18.6]}
33... Ra2 {[%clk 0:01:22.1]} 34. Rxe7 {[%clk 0:00:17.6]} 34... Rf8 {[%clk
0:01:13]} 35. Re6 {[%clk 0:00:16]} 35... Ra7 {[%clk 0:01:00.2]} 36. Rxf6 {[%clk
0:00:15.4]} 36... Rxf6 {[%clk 0:00:57.9]} 37. Qxf6+ {[%clk 0:00:14.9]} 37... Kg8
{[%clk 0:00:58.8]} 38. Qe6+ {[%clk 0:00:14.9]} 38... Kh8 {[%clk 0:00:58.5]} 39.
Qf6+ {[%clk 0:00:15]} 39... Kg8 {[%clk 0:00:58.6]} 40. Re1 {[%clk 0:00:15.5]}
40... Rf7 {[%clk 0:00:53.6]} 41. Qg5+ {[%clk 0:00:14.6]} 41... Kh8 {[%clk
0:00:52.5]} 42. Re7 {[%clk 0:00:15]} 42... Qd8 {[%clk 0:00:49.1]} 43. Rxf7
{[%clk 0:00:04.4]} 43... Qxg5 {[%clk 0:00:48.7]} 44. Rf8+ {[%clk 0:00:04.6]} 1-0

[Event "Early-Titled-Tuesday-Blitz-September-05-2023"]
[Site "Chess.com"]
[Date "2023.09.05"]
[Round "2"]
[White "fen_fire"]
[Black "miraitrunks"]
[Result "1-0"]
[WhiteElo "2445"]
[BlackElo "2023"]
[TimeControl "180+1"]
[EndTime "8:17:16 PDT"]
[Termination "fen_fire won on time"]

1. Nf3 {[%clk 0:03:00.9]} 1... Nf6 {[%clk 0:02:59.6]} 2. d4 {[%clk 0:03:00.9]}
2... d5 {[%clk 0:02:58.6]} 3. Nbd2 {[%clk 0:03:00.5]} 3... Bf5 {[%clk
0:02:58.8]} 4. e3 {[%clk 0:03:00.4]} 4... e6 {[%clk 0:02:58.5]} 5. Nh4 {[%clk
0:03:00]} 5... Bd6 {[%clk 0:02:57.5]} 6. Nxf5 {[%clk 0:02:59.2]} 6... exf5
{[%clk 0:02:58.4]} 7. Bd3 {[%clk 0:02:59.5]} 7... g6 {[%clk 0:02:58]} 8. c4
{[%clk 0:03:00.1]} 8... c6 {[%clk 0:02:56.2]} 9. Qb3 {[%clk 0:03:00.7]} 9... Qb6
{[%clk 0:02:54.9]} 10. c5 {[%clk 0:03:00.8]} 10... Qxb3 {[%clk 0:02:54.9]} 11.
axb3 {[%clk 0:03:00.8]} 11... Bc7 {[%clk 0:02:50.9]} 12. b4 {[%clk 0:03:00.8]}
12... O-O {[%clk 0:02:25.7]} 13. g3 {[%clk 0:03:00.8]} 13... Nbd7 {[%clk
0:02:25.2]} 14. b5 {[%clk 0:02:59.2]} 14... Kg7 {[%clk 0:02:21.4]} 15. O-O
{[%clk 0:02:57.9]} 15... Ne4 {[%clk 0:02:21.3]} 16. Nxe4 {[%clk 0:02:56.4]}
16... fxe4 {[%clk 0:02:22.2]} 17. Be2 {[%clk 0:02:56.8]} 17... f5 {[%clk
0:02:21.8]} 18. Bd2 {[%clk 0:02:50.7]} 18... g5 {[%clk 0:02:20.8]} 19. Ra2
{[%clk 0:02:48.9]} 19... Rf6 {[%clk 0:02:10.7]} 20. Rfa1 {[%clk 0:02:46]} 20...
Bb8 {[%clk 0:02:10.4]} 21. bxc6 {[%clk 0:02:41.1]} 21... bxc6 {[%clk 0:02:07.9]}
22. Ba6 {[%clk 0:02:41.6]} 22... Bc7 {[%clk 0:02:01.5]} 23. Bb7 {[%clk
0:02:41.4]} 23... Rb8 {[%clk 0:02:01.8]} 24. Rxa7 {[%clk 0:02:41.3]} 24... f4
{[%clk 0:02:01]} 25. b4 {[%clk 0:02:31.6]} 25... fxg3 {[%clk 0:01:57.2]} 26.
hxg3 {[%clk 0:02:29]} 26... Rbf8 {[%clk 0:01:57.2]} 27. Be1 {[%clk 0:02:27.5]}
27... Bb8 {[%clk 0:01:30.7]} 28. R7a6 {[%clk 0:02:23.2]} 28... Bxg3 {[%clk
0:01:17.7]} 29. fxg3 {[%clk 0:02:18.5]} 29... Rf1+ {[%clk 0:01:18]} 30. Kg2
{[%clk 0:02:19]} 30... R1f3 {[%clk 0:01:06.5]} 31. Bxc6 {[%clk 0:02:14.1]} 31...
Nf6 {[%clk 0:01:06.4]} 32. Ra7+ {[%clk 0:02:13.1]} 32... Kg6 {[%clk 0:01:05]}
33. Ra8 {[%clk 0:01:46]} 33... Ng4 {[%clk 0:00:14.7]} 34. Rxf8 {[%clk
0:01:42.6]} 34... Nxe3+ {[%clk 0:00:11.1]} 35. Kg1 {[%clk 0:01:41.9]} 35... Rxf8
{[%clk 0:00:11.6]} 36. Bb5 {[%clk 0:00:44.2]} 36... Kh5 {[%clk 0:00:03.5]} 37.
Be2+ {[%clk 0:00:42.6]} 1-0

[Event "Early-Titled-Tuesday-Blitz-September-05-2023"]
[Site "Chess.com"]
[Date "2023.09.05"]
[Round "2"]
[White "GOGIEFF"]
[Black "Agibileg"]
[Result "0-1"]
[WhiteElo "2996"]
[BlackElo "2667"]
[TimeControl "180+1"]
[EndTime "8:17:17 PDT"]
[Termination "Agibileg won by resignation"]

1. d4 {[%clk 0:03:00.9]} 1... Nf6 {[%clk 0:02:59.8]} 2. Nf3 {[%clk 0:03:01.2]}
2... g6 {[%clk 0:02:59.4]} 3. c4 {[%clk 0:03:02.1]} 3... Bg7 {[%clk 0:02:59.5]}
4. Nc3 {[%clk 0:03:02.3]} 4... O-O {[%clk 0:02:59.3]} 5. e4 {[%clk 0:03:01.7]}
5... d6 {[%clk 0:02:59.4]} 6. Be2 {[%clk 0:03:02]} 6... e5 {[%clk 0:02:59.5]} 7.
O-O {[%clk 0:03:02.2]} 7... Nc6 {[%clk 0:02:58.6]} 8. d5 {[%clk 0:03:02.1]} 8...
Ne7 {[%clk 0:02:58.7]} 9. b4 {[%clk 0:03:02.2]} 9... Nd7 {[%clk 0:02:58]} 10. a4
{[%clk 0:02:56.5]} 10... f5 {[%clk 0:02:57.9]} 11. Nd2 {[%clk 0:02:55.5]} 11...
Nf6 {[%clk 0:02:57.9]} 12. c5 {[%clk 0:02:55.6]} 12... f4 {[%clk 0:02:56.7]} 13.
Ba3 {[%clk 0:02:48.3]} 13... g5 {[%clk 0:02:56.3]} 14. b5 {[%clk 0:02:47.3]}
14... g4 {[%clk 0:02:55.2]} 15. cxd6 {[%clk 0:02:46.8]} 15... cxd6 {[%clk
0:02:56.1]} 16. Nc4 {[%clk 0:02:46.5]} 16... f3 {[%clk 0:02:56.1]} 17. gxf3
{[%clk 0:02:46.5]} 17... gxf3 {[%clk 0:02:53.5]} 18. Bxf3 {[%clk 0:02:44.8]}
18... Ne8 {[%clk 0:02:53.8]} 19. Kh1 {[%clk 0:02:34.1]} 19... Bh3 {[%clk
0:02:40.7]} 20. Rg1 {[%clk 0:02:31.4]} 20... Rc8 {[%clk 0:02:40.9]} 21. Qd3
{[%clk 0:02:12.9]} 21... Rxc4 {[%clk 0:02:29.6]} 22. Bh5 {[%clk 0:01:57.8]}
22... Qc8 {[%clk 0:01:58.4]} 23. Ne2 {[%clk 0:01:47]} 23... Ng6 {[%clk
0:01:51.6]} 24. Rg3 {[%clk 0:01:24]} 24... Bd7 {[%clk 0:01:32.2]} 25. Rag1
{[%clk 0:01:23]} 25... Rxf2 {[%clk 0:01:27.7]} 26. Bxg6 {[%clk 0:01:22.8]} 26...
hxg6 {[%clk 0:01:28.6]} 27. Rxg6 {[%clk 0:01:23]} 27... Rc2 {[%clk 0:01:16.1]}
28. Qg3 {[%clk 0:00:48.7]} 28... Rf7 {[%clk 0:01:16.6]} 29. Qh4 {[%clk
0:00:35.5]} 29... Rxe2 {[%clk 0:00:45.8]} 30. Rh6 {[%clk 0:00:35.6]} 30... Rff2
{[%clk 0:00:25.2]} 31. Rh8+ {[%clk 0:00:25.9]} 31... Kf7 {[%clk 0:00:25.5]} 32.
Qh5+ {[%clk 0:00:15.1]} 32... Ke7 {[%clk 0:00:25.1]} 33. Rxg7+ {[%clk
0:00:13.7]} 33... Nxg7 {[%clk 0:00:20.5]} 34. Qg5+ {[%clk 0:00:12.6]} 34... Kf7
{[%clk 0:00:19.7]} 0-1

[Event "Early-Titled-Tuesday-Blitz-September-05-2023"]
[Site "Chess.com"]
[Date "2023.09.05"]
[Round "2"]
[White "Taran2004"]
[Black "PavelChernomordik"]
[Result "1-0"]
[WhiteElo "2354"]
[BlackElo "2506"]
[TimeControl "180+1"]
[EndTime "8:17:22 PDT"]
[Termination "Taran2004 won by resignation"]

1. e4 {[%clk 0:03:00.9]} 1... g6 {[%clk 0:02:55.9]} 2. d4 {[%clk 0:02:59.7]}
2... Bg7 {[%clk 0:02:53.7]} 3. Nc3 {[%clk 0:03:00.2]} 3... d6 {[%clk 0:02:50.3]}
4. Be3 {[%clk 0:03:00.3]} 4... a6 {[%clk 0:02:50]} 5. Nf3 {[%clk 0:02:56.2]}
5... b5 {[%clk 0:02:49]} 6. Bd3 {[%clk 0:02:51.6]} 6... Bb7 {[%clk 0:02:48.6]}
7. Qd2 {[%clk 0:02:51.8]} 7... Nd7 {[%clk 0:02:45.8]} 8. h4 {[%clk 0:02:50.7]}
8... h6 {[%clk 0:02:44]} 9. h5 {[%clk 0:02:49.7]} 9... g5 {[%clk 0:02:43.6]} 10.
a3 {[%clk 0:02:45.1]} 10... c5 {[%clk 0:02:42.8]} 11. d5 {[%clk 0:02:42]} 11...
Ngf6 {[%clk 0:02:35.8]} 12. b4 {[%clk 0:02:40.3]} 12... Qc7 {[%clk 0:02:25.6]}
13. bxc5 {[%clk 0:02:29]} 13... Nxc5 {[%clk 0:02:14.9]} 14. Bd4 {[%clk
0:02:24.2]} 14... e5 {[%clk 0:01:56.2]} 15. dxe6 {[%clk 0:02:17.9]} 15... Nxe6
{[%clk 0:01:54.1]} 16. O-O {[%clk 0:02:05.6]} 16... g4 {[%clk 0:01:50.2]} 17.
Bxf6 {[%clk 0:01:35.9]} 17... Bxf6 {[%clk 0:01:46.6]} 18. Nd5 {[%clk 0:01:36.8]}
18... Bxd5 {[%clk 0:01:44.4]} 19. exd5 {[%clk 0:01:37.7]} 19... Bxa1 {[%clk
0:01:14.8]} 20. dxe6 {[%clk 0:01:29.7]} 20... gxf3 {[%clk 0:01:10.8]} 21. exf7+
{[%clk 0:01:29.6]} 21... Kf8 {[%clk 0:01:10]} 22. Rxa1 {[%clk 0:01:29]} 22...
Qxf7 {[%clk 0:01:06.5]} 23. Be4 {[%clk 0:01:06.4]} 23... Rd8 {[%clk 0:01:05.5]}
24. Bxf3 {[%clk 0:01:06.2]} 24... Rg8 {[%clk 0:01:02.8]} 25. Qxh6+ {[%clk
0:01:04.5]} 25... Qg7 {[%clk 0:01:00.2]} 26. Qf4+ {[%clk 0:01:03.3]} 26... Qf7
{[%clk 0:00:56.5]} 27. Qxf7+ {[%clk 0:01:03.3]} 27... Kxf7 {[%clk 0:00:55.1]}
28. Bd5+ {[%clk 0:01:04.2]} 28... Kf6 {[%clk 0:00:53.5]} 29. Bxg8 {[%clk
0:01:05.1]} 29... Rxg8 {[%clk 0:00:53.1]} 30. f3 {[%clk 0:01:04.9]} 30... Ke5
{[%clk 0:00:50.5]} 31. Kf2 {[%clk 0:01:01.4]} 31... Rc8 {[%clk 0:00:48.5]} 32.
g4 {[%clk 0:00:58.7]} 32... Rxc2+ {[%clk 0:00:47.6]} 33. Kg3 {[%clk 0:00:59.3]}
33... d5 {[%clk 0:00:44]} 34. f4+ {[%clk 0:00:54.7]} 34... Kf6 {[%clk
0:00:41.4]} 35. g5+ {[%clk 0:00:54.7]} 35... Kf5 {[%clk 0:00:41]} 36. Re1 {[%clk
0:00:50.2]} 36... Rc3+ {[%clk 0:00:39.6]} 37. Kh4 {[%clk 0:00:50.3]} 37... Kxf4
{[%clk 0:00:36.2]} 38. Rf1+ {[%clk 0:00:50.1]} 38... Ke5 {[%clk 0:00:35.6]} 39.
h6 {[%clk 0:00:48.6]} 39... Rc2 {[%clk 0:00:30.9]} 40. Kh5 {[%clk 0:00:44]}
40... Rh2+ {[%clk 0:00:28.7]} 41. Kg6 {[%clk 0:00:44]} 41... d4 {[%clk
0:00:28.4]} 42. h7 {[%clk 0:00:43.6]} 42... d3 {[%clk 0:00:25.7]} 43. Kg7 {[%clk
0:00:43.8]} 43... d2 {[%clk 0:00:19.5]} 44. g6 {[%clk 0:00:43.2]} 44... Kd4
{[%clk 0:00:18]} 45. h8=Q {[%clk 0:00:40.5]} 45... Rxh8 {[%clk 0:00:17.3]} 46.
Kxh8 {[%clk 0:00:41.4]} 46... a5 {[%clk 0:00:14.9]} 47. g7 {[%clk 0:00:40]} 1-0

[Event "Early-Titled-Tuesday-Blitz-September-05-2023"]
[Site "Chess.com"]
[Date "2023.09.05"]
[Round "2"]
[White "Rud_Makarian"]
[Black "GamayevOleg"]
[Result "1-0"]
[WhiteElo "2950"]
[BlackElo "2622"]
[TimeControl "180+1"]
[EndTime "8:17:23 PDT"]
[Termination "Rud_Makarian won by checkmate"]

1. d4 {[%clk 0:02:59.1]} 1... Nf6 {[%clk 0:02:53.2]} 2. c4 {[%clk 0:02:59.2]}
2... e6 {[%clk 0:02:51.7]} 3. Nf3 {[%clk 0:02:59.3]} 3... b6 {[%clk 0:02:50.9]}
4. g3 {[%clk 0:02:59]} 4... Bb7 {[%clk 0:02:51.5]} 5. Bg2 {[%clk 0:02:58.9]}
5... Be7 {[%clk 0:02:50.8]} 6. O-O {[%clk 0:02:59.2]} 6... O-O {[%clk
0:02:49.8]} 7. Re1 {[%clk 0:02:59.5]} 7... Ne4 {[%clk 0:02:49.9]} 8. Nfd2 {[%clk
0:02:56.8]} 8... f5 {[%clk 0:02:49.2]} 9. Nxe4 {[%clk 0:02:56.5]} 9... Bxe4
{[%clk 0:02:48.2]} 10. Bxe4 {[%clk 0:02:42.6]} 10... fxe4 {[%clk 0:02:49.1]} 11.
Nc3 {[%clk 0:02:40.7]} 11... d5 {[%clk 0:02:44.4]} 12. cxd5 {[%clk 0:02:40.1]}
12... exd5 {[%clk 0:02:44.8]} 13. Qb3 {[%clk 0:02:39.2]} 13... c6 {[%clk
0:02:44.7]} 14. Nxe4 {[%clk 0:02:39.5]} 14... Nd7 {[%clk 0:02:38.2]} 15. Nc3
{[%clk 0:02:35.4]} 15... Kh8 {[%clk 0:02:37.8]} 16. Bf4 {[%clk 0:02:34.2]} 16...
Rxf4 {[%clk 0:02:27.8]} 17. gxf4 {[%clk 0:02:32.6]} 17... Bd6 {[%clk 0:02:28.7]}
18. e3 {[%clk 0:02:23.6]} 18... Qh4 {[%clk 0:02:28.1]} 19. Qd1 {[%clk
0:02:23.8]} 19... Rf8 {[%clk 0:02:26.2]} 20. Qf3 {[%clk 0:02:22.4]} 20... g5
{[%clk 0:02:26]} 21. Kh1 {[%clk 0:02:10.8]} 21... Nf6 {[%clk 0:02:21.8]} 22. Qg3
{[%clk 0:02:09.5]} 22... Qh5 {[%clk 0:02:19.9]} 23. Qxg5 {[%clk 0:01:47.5]}
23... Qf3+ {[%clk 0:02:19.4]} 24. Qg2 {[%clk 0:01:48]} 24... Qh5 {[%clk
0:02:20]} 25. f3 {[%clk 0:01:47.1]} 25... Rg8 {[%clk 0:02:18.2]} 26. Qf2 {[%clk
0:01:48]} 26... Rg6 {[%clk 0:02:13.3]} 27. Rg1 {[%clk 0:01:47.6]} 27... Rh6
{[%clk 0:02:13.9]} 28. Rg5 {[%clk 0:01:47.3]} 28... Qh3 {[%clk 0:02:12.5]} 29.
Rag1 {[%clk 0:01:47.5]} 29... Rh4 {[%clk 0:02:08.9]} 30. Qg3 {[%clk 0:01:34.6]}
30... Qxg3 {[%clk 0:02:02.1]} 31. R1xg3 {[%clk 0:01:34.1]} 31... Rh6 {[%clk
0:01:59.2]} 32. Kg2 {[%clk 0:01:33.3]} 32... b5 {[%clk 0:01:45]} 33. Rh3 {[%clk
0:01:21.2]} 33... Rxh3 {[%clk 0:01:41.8]} 34. Kxh3 {[%clk 0:01:22.1]} 34... h6
{[%clk 0:01:42.5]} 35. Rg6 {[%clk 0:01:22]} 35... Be7 {[%clk 0:01:41.8]} 36. f5
{[%clk 0:01:20.5]} 36... Kh7 {[%clk 0:01:41.6]} 37. e4 {[%clk 0:01:14]} 37... b4
{[%clk 0:01:39.1]} 38. Ne2 {[%clk 0:01:08.4]} 38... dxe4 {[%clk 0:01:38.4]} 39.
fxe4 {[%clk 0:01:09.3]} 39... Nxe4 {[%clk 0:01:38.9]} 40. Rxc6 {[%clk
0:01:08.8]} 40... Ng5+ {[%clk 0:01:36.2]} 41. Kg4 {[%clk 0:01:08.5]} 41... Bd8
{[%clk 0:01:31.3]} 42. Nf4 {[%clk 0:00:59.6]} 42... Ne4 {[%clk 0:01:29.6]} 43.
Nd5 {[%clk 0:00:52.1]} 43... Nf2+ {[%clk 0:01:25.4]} 44. Kf3 {[%clk 0:00:50.2]}
44... Nd3 {[%clk 0:01:25.9]} 45. Rd6 {[%clk 0:00:47.8]} 45... Bg5 {[%clk
0:01:21.4]} 46. Rd7+ {[%clk 0:00:48]} 46... Kg8 {[%clk 0:01:21.8]} 47. f6 {[%clk
0:00:48.3]} 47... Nxb2 {[%clk 0:01:20]} 48. h4 {[%clk 0:00:43]} 48... Bxh4
{[%clk 0:01:19.1]} 49. Kg4 {[%clk 0:00:40.1]} 49... Bg5 {[%clk 0:01:18]} 50. Kf5
{[%clk 0:00:40.9]} 50... Kf8 {[%clk 0:01:08.3]} 51. Ke6 {[%clk 0:00:37.4]} 51...
Kg8 {[%clk 0:01:08.2]} 52. Rg7+ {[%clk 0:00:30.3]} 52... Kf8 {[%clk 0:01:04.2]}
53. Ne7 {[%clk 0:00:22.9]} 53... Nd3 {[%clk 0:01:01.6]} 54. Rg8# {[%clk
0:00:18.8]} 1-0